bitfinex/quotes_BTCUSD_20260110
["timestamp","ask_amount","ask_price","bid_price","bid_amount"]
[1768070113770,0.01104142,90568.0,90560.0,0.04854723]
[1768070115731,0.01104154,90567.0,90560.0,0.04854723]
[1768070118545,0.01104167,90566.0,90560.0,0.04854723]
[1768070118919,0.01104154,90567.0,90560.0,0.04854723]
[1768070119145,0.0110413,90569.0,90560.0,0.04854723]
[1768070120308,0.03316118,90570.0,90560.0,0.04854723]
[1768070120536,0.01104142,90568.0,90561.0,0.04854723]
[1768070121364,0.02212,90570.0,90561.0,0.04854723]
[1768070122546,0.03316118,90570.0,90561.0,0.04854723]
[1768070122953,0.02212,90570.0,90561.0,0.04854723]
[1768070124001,0.03316118,90570.0,90561.0,0.04854723]
[1768070124225,0.02212,90570.0,90561.0,0.04854723]
[1768070126521,0.02212,90570.0,90561.0,0.05958951]
[1768070126757,0.02212,90570.0,90561.0,0.04854723]
[1768070126930,0.02212,90570.0,90562.0,0.01104215]
[1768070128519,0.02212,90570.0,90561.0,0.05958951]
[1768070129251,0.02212,90570.0,90562.0,0.01104215]
[1768070129655,0.02212,90570.0,90561.0,0.05958951]
[1768070131354,0.02212,90570.0,90563.0,0.04854723]
[1768070132850,0.02212,90570.0,90562.0,0.01104215]
[1768070133050,0.02212,90570.0,90561.0,0.01104228]
[1768070133650,0.02212,90570.0,90562.0,0.01104215]
[1768070134860,0.02212,90570.0,90563.0,0.01104203]
[1768070140141,0.02212,90573.0,90563.0,0.01104203]
[1768070141912,0.02212,90573.0,90562.0,0.01104215]
[1768070142298,0.02212,90573.0,90563.0,0.01104203]
[1768070142615,0.02212,90573.0,90562.0,0.01104215]
[1768070142987,0.02212,90573.0,90563.0,0.01104203]
[1768070143736,0.02212,90573.0,90562.0,0.01104215]
[1768070143945,0.02212,90573.0,90563.0,0.01104203]
[1768070144452,0.02212,90573.0,90564.0,0.01104191]
[1768070144624,0.02212,90573.0,90563.0,0.01104203]
[1768070144768,0.02212,90573.0,90564.0,0.01104191]
[1768070145180,0.02212,90573.0,90563.0,0.01104203]
[1768070149015,0.02212,90573.0,90564.0,0.01104191]
[1768070149249,0.02212,90573.0,90563.0,0.01104203]
[1768070149440,0.02212,90573.0,90564.0,0.01104191]
[1768070149641,0.02212,90573.0,90563.0,0.01104203]
[1768070149798,0.02212,90573.0,90564.0,0.01104191]
[1768070150770,0.02212,90573.0,90563.0,0.01104203]
[1768070152533,0.02212,90573.0,90564.0,0.01104191]
[1768070152976,0.02212,90573.0,90563.0,0.01104203]
[1768070154618,0.02212,90573.0,90562.0,0.01104215]
[1768070157624,0.02212,90573.0,90563.0,0.01104203]
[1768070158826,0.02212,90573.0,90562.0,0.01104215]
[1768070159050,0.02212,90573.0,90563.0,0.01104203]
[1768070161946,0.02212,90573.0,90562.0,0.01104215]
[1768070164772,0.02212,90573.0,90563.0,0.01104203]
[1768070169606,0.02212,90573.0,90562.0,0.01104215]
[1768070169746,0.01104093,90572.0,90561.0,0.04944233]
[1768070170151,0.03316081,90573.0,90561.0,0.04944233]
[1768070170804,0.01104093,90572.0,90561.0,0.04944233]
[1768070171975,0.03316081,90573.0,90561.0,0.04944233]
[1768070173787,0.02212,90573.0,90561.0,0.06048461]
[1768070174192,0.03316081,90573.0,90561.0,0.04944233]
[1768070174504,0.02212,90573.0,90561.0,0.04944233]
[1768070174731,0.03316081,90573.0,90561.0,0.04944233]
[1768070175344,0.01104093,90572.0,90561.0,0.04944233]
[1768070176663,0.03316081,90573.0,90560.0,0.29293032]
[1768070176664,0.02212,90573.0,90562.0,0.06048448]
[1768070176815,0.02212,90573.0,90562.0,0.11569523]
[1768070177165,0.02212,90573.0,90562.0,0.06048448]
[1768070177522,0.02212,90573.0,90563.0,0.01104203]
[1768070179464,0.02212,90573.0,90562.0,0.06048448]
[1768070179625,0.02212,90573.0,90563.0,0.01104203]
[1768070181985,0.02212,90573.0,90563.0,0.06048436]
[1768070182369,0.02212,90573.0,90564.0,0.01104191]
[1768070183361,0.02212,90573.0,90565.0,0.04944233]
[1768070185411,0.02212,90573.0,90565.0,0.06048412]
[1768070185714,0.02212,90573.0,90565.0,0.04944233]
[1768070190714,0.02212,90575.0,90565.0,0.04944233]
[1768070192883,0.04424,90575.0,90565.0,0.04944233]
[1768070193090,0.04424,90575.0,90565.0,0.06048412]
[1768070193291,0.04424,90575.0,90565.0,0.04944233]
[1768070194112,0.04424,90575.0,90565.0,0.04628621]
[1768070199423,0.04424,90575.0,90565.0,0.057328]
[1768070199861,0.04424,90575.0,90565.0,0.04628621]
[1768070200315,0.04424,90575.0,90565.0,0.057328]
[1768070200755,0.04424,90575.0,90565.0,0.04628621]
[1768070201296,0.04424,90575.0,90565.0,0.057328]
[1768070201752,0.02212,90575.0,90568.0,0.01104142]
[1768070202049,0.02212,90576.0,90565.0,0.057328]
[1768070202399,0.02212,90576.0,90566.0,0.01104167]
[1768070202636,0.02212,90576.0,90567.0,0.01104154]
[1768070203438,0.476691,90575.0,90567.0,0.01104154]
[1768070203649,0.476691,90575.0,90569.0,0.0110413]
[1768070203850,0.476691,90575.0,90568.0,0.01104142]
[1768070204837,0.476691,90575.0,90569.0,0.0110413]
[1768070205060,0.476691,90575.0,90568.0,0.01104142]
[1768070205261,0.476691,90575.0,90569.0,0.0110413]
[1768070205883,0.476691,90575.0,90568.0,0.01104142]
[1768070206288,0.476691,90575.0,90565.0,0.04628621]
[1768070206525,0.476691,90575.0,90567.0,0.01104154]
[1768070208273,0.476691,90575.0,90565.0,0.057328]
[1768070208544,0.476691,90575.0,90566.0,0.01104167]
[1768070209216,0.476691,90575.0,90567.0,0.01104154]
[1768070210390,0.476691,90575.0,90565.0,0.057328]
[1768070210587,0.476691,90575.0,90566.0,0.01104167]
[1768070211727,0.476691,90575.0,90567.0,0.01104154]
[1768070211899,0.476691,90575.0,90565.0,0.057328]
[1768070212061,0.476691,90575.0,90565.0,0.04628621]
[1768070212845,0.476691,90575.0,90565.0,0.057328]
[1768070213760,0.476691,90575.0,90566.0,0.01104167]
[1768070214190,0.476691,90575.0,90567.0,0.01104154]
[1768070214568,0.476691,90575.0,90566.0,0.01104167]
[1768070217846,0.476691,90575.0,90567.0,0.01104154]
[1768070218768,0.476691,90575.0,90568.0,0.01104142]
[1768070219048,0.475692,90575.0,90568.0,0.01104142]
[1768070219269,0.475692,90575.0,90569.0,0.0110413]
[1768070219864,0.475692,90575.0,90570.0,0.01104118]
[1768070220660,0.475692,90575.0,90567.0,0.01104154]
[1768070221138,0.475692,90575.0,90568.0,0.01104142]
[1768070221344,0.475692,90575.0,90570.0,0.06079883]
[1768070221543,0.475692,90575.0,90570.0,0.04975765]
[1768070221962,0.475692,90575.0,90572.0,0.04975765]
[1768070226639,0.475692,90575.0,90569.0,0.0110413]
[1768070227064,0.475692,90575.0,90568.0,0.01104142]
[1768070227973,0.475692,90575.0,90569.0,0.0110413]
[1768070228607,0.475692,90575.0,90570.0,0.01104118]
[1768070228823,0.475692,90575.0,90569.0,0.0110413]
[1768070229242,0.475692,90575.0,90570.0,0.01104118]
[1768070229628,0.475692,90575.0,90569.0,0.0110413]
[1768070229870,0.475692,90575.0,90570.0,0.01104118]
[1768070230095,0.475692,90575.0,90569.0,0.0110413]
[1768070231708,0.475692,90575.0,90570.0,0.01104118]
[1768070231921,0.475692,90575.0,90569.0,0.0110413]
[1768070233847,0.475692,90575.0,90570.0,0.01104118]
[1768070234065,0.475692,90575.0,90569.0,0.0110413]
[1768070235613,0.475692,90575.0,90568.0,0.01104142]
[1768070236306,0.475692,90575.0,90570.0,0.01104118]
[1768070236751,0.475692,90575.0,90569.0,0.0110413]
[1768070236991,0.475692,90575.0,90568.0,0.01104142]
[1768070237407,0.475692,90575.0,90569.0,0.0110413]
[1768070238342,0.475692,90575.0,90568.0,0.01104142]
[1768070238542,0.475692,90575.0,90569.0,0.0110413]
[1768070239403,0.475692,90575.0,90567.0,0.01104154]
[1768070240345,0.475692,90575.0,90569.0,0.0110413]
[1768070241169,0.475692,90575.0,90567.0,0.01104154]
[1768070241376,0.475692,90575.0,90565.0,0.29288442]
[1768070241594,0.475692,90575.0,90565.0,0.30392621]
[1768070241965,0.475692,90575.0,90566.0,0.01104167]
[1768070242725,0.475692,90575.0,90567.0,0.01104154]
[1768070242904,0.475692,90575.0,90566.0,0.01104167]
[1768070243109,0.475692,90575.0,90567.0,0.01104154]
[1768070243735,0.475692,90575.0,90568.0,0.01104142]
[1768070243936,0.475692,90575.0,90567.0,0.01104154]
[1768070244303,0.475692,90575.0,90566.0,0.01104167]
[1768070244525,0.475692,90575.0,90567.0,0.01104154]
[1768070245625,0.475692,90575.0,90568.0,0.01104142]
[1768070245961,0.475692,90575.0,90567.0,0.01104154]
[1768070246506,0.475692,90575.0,90565.0,0.29288442]
[1768070247149,0.475692,90575.0,90566.0,0.01104167]
[1768070248087,0.475692,90575.0,90567.0,0.01104154]
[1768070249553,0.475692,90575.0,90563.0,0.04765437]
[1768070249758,0.475692,90575.0,90565.0,0.29288442]
[1768070250106,0.475692,90575.0,90565.0,0.30392621]
[1768070250758,0.475692,90575.0,90565.0,0.29288442]
[1768070251405,0.475692,90575.0,90565.0,0.30392621]
[1768070252020,0.475692,90575.0,90565.0,0.01104179]
[1768070252223,0.475692,90575.0,90565.0,0.30392621]
[1768070253677,0.475692,90575.0,90566.0,0.01104167]
[1768070254294,0.475692,90575.0,90568.0,0.01104142]
[1768070254729,0.475692,90575.0,90567.0,0.01104154]
[1768070255668,0.475692,90575.0,90568.0,0.01104142]
[1768070255876,0.475692,90575.0,90567.0,0.01104154]
[1768070256085,0.475692,90575.0,90566.0,0.01104167]
[1768070257196,0.475692,90575.0,90567.0,0.01104154]
[1768070257382,0.475692,90575.0,90568.0,0.01104142]
[1768070257579,0.475692,90575.0,90567.0,0.01104154]
[1768070258348,0.475692,90575.0,90568.0,0.01104142]
[1768070258613,0.475692,90575.0,90567.0,0.01104154]
[1768070259474,0.475692,90575.0,90568.0,0.01104142]
[1768070260051,0.475692,90575.0,90569.0,0.0110413]
[1768070260252,0.475692,90575.0,90567.0,0.01104154]
[1768070261048,0.475692,90575.0,90565.0,0.11141517]
[1768070261049,0.475692,90575.0,90566.0,0.01104167]
[1768070262412,0.475692,90575.0,90567.0,0.01104154]
[1768070263211,0.475692,90575.0,90565.0,0.05620632]
[1768070263420,0.475692,90575.0,90568.0,0.01104142]
[1768070263823,0.475692,90575.0,90566.0,0.01104167]
[1768070264004,0.475692,90575.0,90567.0,0.04516453]
[1768070265147,0.475692,90575.0,90569.0,0.04516453]
[1768070266936,0.475692,90575.0,90567.0,0.01104154]
[1768070267141,0.475692,90575.0,90566.0,0.01104167]
[1768070267740,0.475692,90575.0,90567.0,0.01104154]
[1768070268164,0.475692,90575.0,90566.0,0.01104167]
[1768070268628,0.475692,90575.0,90568.0,0.01104142]
[1768070268963,0.475692,90575.0,90566.0,0.01104167]
[1768070269164,0.475692,90575.0,90564.0,0.04516453]
[1768070269369,0.475692,90575.0,90564.0,0.05620644]
[1768070269567,0.475692,90575.0,90564.0,0.04516453]
[1768070270076,0.48673257,90575.0,90564.0,0.04516453]
[1768070270749,0.475692,90575.0,90564.0,0.04516453]
[1768070272362,0.48673257,90575.0,90564.0,0.04516453]
[1768070273049,0.475692,90575.0,90564.0,0.04516453]
[1768070276028,0.48673257,90575.0,90564.0,0.04516453]
[1768070279522,0.01104069,90574.0,90564.0,0.04516453]
[1768070279825,0.01098578,90574.0,90564.0,0.04516453]
[1768070281056,0.01104081,90573.0,90564.0,0.04516453]
[1768070281227,0.01104093,90572.0,90564.0,0.00682963]
[1768070282955,0.01104106,90571.0,90564.0,0.00682963]
[1768070283177,0.01104093,90572.0,90564.0,0.00682963]
[1768070283358,0.01104106,90571.0,90564.0,0.00682963]
[1768070284365,0.01104118,90570.0,90564.0,0.00682963]
[1768070284595,0.01104106,90571.0,90564.0,0.00682963]
[1768070284749,0.01104118,90570.0,90564.0,0.00682963]
[1768070285361,0.01104106,90571.0,90564.0,0.00682963]
[1768070285755,0.01104118,90570.0,90564.0,0.00682963]
[1768070285977,0.01104106,90571.0,90564.0,0.00682963]
[1768070286893,0.01104106,90571.0,90561.0,0.02212]
[1768070288845,0.01104093,90572.0,90561.0,0.02212]
[1768070289011,0.01104106,90571.0,90561.0,0.02212]
[1768070289219,0.01104093,90572.0,90561.0,0.02212]
[1768070289553,0.01104106,90571.0,90561.0,0.02212]
[1768070290126,0.01104093,90572.0,90561.0,0.02212]
[1768070290331,0.01104106,90571.0,90561.0,0.02212]
[1768070291338,0.01104093,90572.0,90561.0,0.02212]
[1768070291541,0.01104106,90571.0,90561.0,0.02212]
[1768070291720,0.01104093,90572.0,90561.0,0.02212]
[1768070292135,0.01104106,90571.0,90561.0,0.02212]
[1768070292617,0.01104081,90573.0,90561.0,0.02212]
[1768070293669,0.01104106,90571.0,90561.0,0.02212]
[1768070293905,0.01104093,90572.0,90561.0,0.02212]
[1768070294405,0.01104081,90573.0,90561.0,0.02212]
[1768070295540,0.01104093,90572.0,90561.0,0.02212]
[1768070295898,0.01104081,90573.0,90562.0,0.04896543]
[1768070296326,0.01104093,90572.0,90562.0,0.04896543]
[1768070296529,0.01098578,90574.0,90562.0,0.04896543]
[1768070297051,0.475692,90575.0,90562.0,0.06000758]
[1768070298385,0.475692,90575.0,90564.0,0.04896543]
[1768070299203,0.48673257,90575.0,90564.0,0.04896543]
[1768070299683,0.475692,90575.0,90564.0,0.04896543]
[1768070300269,0.475692,90575.0,90564.0,0.06000734]
[1768070301259,0.475692,90575.0,90566.0,0.04896543]
[1768070302674,0.475692,90575.0,90564.0,0.01104191]
[1768070304464,0.475692,90575.0,90567.0,0.04896543]
[1768070304634,0.475692,90575.0,90565.0,0.01104179]
[1768070305084,0.475692,90575.0,90565.0,0.06000722]
[1768070305587,0.475692,90575.0,90567.0,0.04896543]
[1768070305764,0.475692,90575.0,90565.0,0.01104179]
[1768070306710,0.475692,90575.0,90566.0,0.01104167]
[1768070307859,0.475692,90575.0,90565.0,0.01104179]
[1768070307981,0.475692,90575.0,90566.0,0.01104167]
[1768070308395,0.475692,90575.0,90567.0,0.01104154]
[1768070310871,0.475692,90575.0,90568.0,0.01104142]
[1768070311070,0.475692,90575.0,90567.0,0.01104154]
[1768070311490,0.475692,90575.0,90569.0,0.0110413]
[1768070311716,0.475692,90575.0,90564.0,0.05520946]
[1768070311924,0.475692,90575.0,90565.0,0.06000722]
[1768070312326,0.475692,90575.0,90567.0,0.01104154]
[1768070312532,0.475692,90575.0,90566.0,0.01104167]
[1768070313093,0.475692,90575.0,90567.0,0.01104154]
[1768070313508,0.475692,90575.0,90568.0,0.01104142]
[1768070314832,0.475692,90575.0,90569.0,0.0110413]
[1768070320130,0.475692,90575.0,90570.0,0.01104118]
[1768070320931,0.475692,90575.0,90569.0,0.0110413]
[1768070321756,0.475692,90575.0,90570.0,0.01104118]
[1768070322224,0.475692,90575.0,90569.0,0.0110413]
[1768070324948,0.475692,90575.0,90570.0,0.01104118]
[1768070325571,0.475692,90575.0,90569.0,0.0110413]
[1768070325959,0.475692,90575.0,90570.0,0.01104118]
[1768070326168,0.475692,90575.0,90569.0,0.0110413]
[1768070326731,0.475692,90575.0,90570.0,0.01104118]
[1768070328503,0.475692,90575.0,90571.0,0.01104106]
[1768070328712,0.475692,90575.0,90570.0,0.01104118]
[1768070332550,0.475692,90575.0,90571.0,0.01104106]
[1768070332980,0.475692,90575.0,90570.0,0.01104118]
[1768070335982,0.475692,90575.0,90571.0,0.01104106]
[1768070338827,0.475692,90575.0,90570.0,0.01104118]
[1768070339204,0.475692,90575.0,90571.0,0.01104106]
[1768070339635,0.475692,90575.0,90569.0,0.0110413]
[1768070341519,0.475692,90575.0,90568.0,0.02212]
[1768070342714,0.475692,90575.0,90568.0,0.03316142]
[1768070343128,0.475692,90575.0,90568.0,0.02212]
[1768070343448,0.475692,90575.0,90568.0,0.03316142]
[1768070344091,0.475692,90575.0,90568.0,0.02212]
[1768070345980,0.475692,90575.0,90568.0,0.03316142]
[1768070346182,0.475692,90575.0,90568.0,0.02212]
[1768070346677,0.475692,90575.0,90568.0,0.03316142]
[1768070347803,0.475692,90575.0,90568.0,0.02212]
[1768070350045,0.475692,90575.0,90568.0,0.03316142]
[1768070350445,0.475692,90575.0,90568.0,0.02212]
[1768070350616,0.475692,90575.0,90568.0,0.03316142]
[1768070351268,0.475692,90575.0,90568.0,0.02212]
[1768070381710,0.475692,90575.0,90569.0,0.04968748]
[1768070386717,0.475692,90575.0,90568.0,0.02212]
[1768070387062,0.475692,90575.0,90568.0,0.07180748]
[1768070387274,0.475692,90575.0,90569.0,0.04968748]
[1768070389060,0.475692,90575.0,90568.0,0.02212]
[1768070389956,0.475692,90575.0,90569.0,0.04968748]
[1768070390932,0.475692,90575.0,90568.0,0.02212]
[1768070398230,0.4510064,90575.0,90574.0,0.10599653]
[1768070398635,0.4510064,90575.0,90574.0,0.10595168]
[1768070400935,0.4510064,90575.0,90574.0,0.08226508]
[1768070401139,0.4510064,90575.0,90574.0,0.08126608]
[1768070404649,0.4510064,90575.0,90574.0,0.08122123]
[1768070408196,0.4510064,90575.0,90574.0,0.07451051]
[1768070413470,0.4510064,90575.0,90574.0,0.12189947]
[1768070415290,0.4510064,90575.0,90574.0,0.07451051]
[1768070419874,0.4510064,90575.0,90574.0,0.06712474]
[1768070424917,0.42705037,90575.0,90574.0,0.06712474]
[1768070431894,0.42705037,90575.0,90574.0,0.04316871]
[1768070438593,0.42705037,90575.0,90574.0,0.08920519]
[1768070443747,0.42705037,90575.0,90574.0,0.04316871]
[1768070447652,0.40471691,90575.0,90574.0,0.08920519]
[1768070448000,0.04636012,90575.0,90574.0,0.04603648]
[1768070448403,0.02813474,90575.0,90574.0,0.04603648]
[1768070448630,0.01813474,90575.0,90574.0,0.04603648]
[1768070450885,0.02212,90578.0,90575.0,0.04603648]
[1768070451033,0.021121,90578.0,90575.0,0.04603648]
[1768070463140,0.021121,90578.0,90573.0,0.10599653]
[1768070468171,0.02212,90578.0,90573.0,0.10599653]
[1768070468367,0.02212,90578.0,90573.0,0.11703734]
[1768070468775,0.02212,90578.0,90573.0,0.10599653]
[1768070469178,0.02212,90578.0,90573.0,0.11703734]
[1768070469386,0.02212,90578.0,90573.0,0.10599653]
[1768070469881,0.02212,90578.0,90573.0,0.11703734]
[1768070470137,0.02212,90578.0,90573.0,0.10599653]
[1768070470402,0.00050743,90579.0,90573.0,0.11703734]
[1768070470643,0.02212,90578.0,90573.0,0.10599653]
[1768070471820,0.02212,90578.0,90573.0,0.11703734]
[1768070472419,0.02212,90578.0,90573.0,0.10599653]
[1768070472850,0.02212,90578.0,90573.0,0.11703734]
[1768070475091,0.02212,90578.0,90574.0,0.01104069]
[1768070476215,0.02212,90578.0,90575.0,0.01104057]
[1768070476991,0.02212,90578.0,90574.0,0.01104069]
[1768070478141,0.02212,90578.0,90575.0,0.01104057]
[1768070478323,0.02212,90578.0,90574.0,0.01104069]
[1768070478526,0.02212,90578.0,90575.0,0.01104057]
[1768070479949,0.02212,90578.0,90574.0,0.01104069]
[1768070480910,0.02212,90578.0,90575.0,0.01104057]
[1768070482227,0.02212,90578.0,90574.0,0.01104069]
[1768070482415,0.02212,90578.0,90573.0,0.11703734]
[1768070482628,0.02212,90578.0,90573.0,0.15299536]
[1768070482842,0.02212,90578.0,90574.0,0.01104069]
[1768070483119,0.02212,90578.0,90575.0,0.01104057]
[1768070483470,0.02212,90578.0,90574.0,0.01104069]
[1768070486988,0.02212,90578.0,90573.0,0.16403617]
[1768070487191,0.02212,90578.0,90574.0,0.01104069]
[1768070488123,0.02212,90578.0,90575.0,0.01104057]
[1768070489362,0.02212,90578.0,90575.0,0.01099572]
[1768070489488,0.02212,90578.0,90575.0,0.01104057]
[1768070490476,0.02212,90578.0,90575.0,0.06624343]
[1768070491778,0.02212,90578.0,90576.0,0.05520202]
[1768070492558,0.02212,90578.0,90575.0,0.01104057]
[1768070492808,0.02212,90578.0,90575.0,0.06624336]
[1768070493541,0.02262743,90579.0,90576.0,0.06624258]
[1768070497986,0.00050743,90579.0,90577.0,0.05520156]
[1768070498238,0.02262743,90579.0,90577.0,0.05520156]
[1768070498913,0.02262743,90579.0,90576.0,0.01104045]
[1768070498914,0.02262743,90579.0,90576.0,0.06624254]
[1768070499087,0.00050743,90579.0,90576.0,0.06624254]
[1768070499287,0.02262743,90579.0,90576.0,0.06624254]
[1768070499487,0.02262743,90579.0,90577.0,0.05520146]
[1768070500824,0.02262743,90579.0,90576.0,0.06624259]
[1768070504678,0.00050743,90579.0,90576.0,0.06624259]
[1768070504880,0.00050743,90579.0,90576.0,0.06619774]
[1768070505607,0.00050743,90579.0,90577.0,0.0552016]
[1768070508577,0.00050743,90579.0,90576.0,0.06619771]
[1768070513597,0.00050743,90579.0,90577.0,0.05520159]
[1768070515074,0.00050743,90579.0,90576.0,0.06619772]
[1768070517651,0.00050743,90579.0,90577.0,0.05520156]
[1768070517835,0.00050743,90579.0,90578.0,0.05520104]
[1768070518484,0.00050743,90579.0,90577.0,0.05520156]
[1768070520381,0.00050743,90579.0,90576.0,0.06619775]
[1768070520780,0.00050743,90579.0,90577.0,0.05520143]
[1768070520989,0.00050743,90579.0,90577.0,0.05515657]
[1768070522315,0.00050743,90579.0,90576.0,0.0109956]
[1768070522519,0.00050743,90579.0,90576.0,0.01104045]
[1768070530947,0.00050743,90579.0,90576.0,0.06624268]
[1768070531493,0.00050743,90579.0,90576.0,0.01104045]
[1768070544887,0.00050743,90579.0,90575.0,0.01104057]
[1768070545095,0.00050743,90579.0,90576.0,0.01104045]
[1768070549772,0.00050743,90579.0,90577.0,0.04844835]
[1768070550779,0.00050743,90579.0,90578.0,0.10364939]
[1768070552182,0.00050743,90579.0,90578.0,0.04844835]
[1768070552413,0.02212,90587.0,90580.0,0.01103996]
[1768070554253,0.02212,90587.0,90579.0,0.01104008]
[1768070554873,0.02212,90587.0,90579.0,0.01099522]
[1768070555073,0.02212,90587.0,90580.0,0.01103996]
[1768070555463,0.01104069,90589.0,90580.0,0.01103996]
[1768070555812,0.01104069,90589.0,90579.0,0.01104008]
[1768070555813,0.02212,90588.0,90579.0,0.01104008]
[1768070556371,0.02212,90587.0,90579.0,0.01104008]
[1768070556784,0.02212,90587.0,90580.0,0.01103996]
[1768070556971,0.02212,90587.0,90579.0,0.01104008]
[1768070557183,0.02212,90587.0,90581.0,0.01103984]
[1768070557385,0.02212,90587.0,90581.0,0.01099472]
[1768070558449,0.02212,90587.0,90580.0,0.01103996]
[1768070562403,0.02212,90587.0,90579.0,0.01104008]
[1768070562604,0.00019542,90590.0,90580.0,0.01103996]
[1768070562803,0.02212,90586.0,90580.0,0.01103996]
[1768070563165,0.00019542,90590.0,90580.0,0.01103996]
[1768070563366,0.02212,90589.0,90578.0,0.05948855]
[1768070563587,0.000999,90580.0,90578.0,0.04844835]
[1768070564197,0.00049157,90580.0,90578.0,0.04844835]
[1768070565246,0.02212,90584.0,90578.0,0.04844835]
[1768070565665,0.02212,90584.0,90578.0,0.04840323]
[1768070566242,0.02212,90584.0,90578.0,0.05944343]
[1768070566774,0.02212,90584.0,90579.0,0.01104008]
[1768070567178,0.02212,90584.0,90578.0,0.05944343]
[1768070567725,0.02212,90584.0,90579.0,0.01104008]
[1768070568106,0.02212,90583.0,90579.0,0.01104008]
[1768070568543,0.02212,90583.0,90578.0,0.05944343]
[1768070568714,0.02212,90583.0,90579.0,0.01104008]
[1768070569171,0.02212,90583.0,90579.0,0.01099496]
[1768070569345,0.02212,90583.0,90579.0,0.01104008]
[1768070570731,0.02212,90583.0,90580.0,0.01103996]
[1768070570930,0.02212,90583.0,90580.0,0.01099484]
[1768070571171,0.00019542,90590.0,90579.0,0.01104008]
[1768070571481,0.02212,90589.0,90580.0,0.01103996]
[1768070571648,0.02212,90589.0,90581.0,0.01103984]
[1768070571850,0.02212,90588.0,90580.0,0.01103996]
[1768070572546,0.02212,90588.0,90579.0,0.01104008]
[1768070572957,0.02212,90588.0,90578.0,0.05944343]
[1768070574836,0.02212,90588.0,90578.0,0.04840323]
[1768070574967,0.02212,90588.0,90578.0,0.05944343]
[1768070576516,0.02212,90588.0,90579.0,0.01104008]
[1768070578482,0.02212,90588.0,90580.0,0.01103996]
[1768070578650,0.02212,90588.0,90580.0,0.01099484]
[1768070578847,0.02212,90588.0,90579.0,0.01104008]
[1768070579877,0.00019542,90590.0,90579.0,0.01104008]
[1768070580108,0.02212,90589.0,90579.0,0.01104008]
[1768070580309,0.02212,90589.0,90578.0,0.05944343]
[1768070580467,0.02208,90588.0,90579.0,0.01104008]
[1768070580671,0.02208,90588.0,90578.0,0.05944343]
[1768070580976,0.02208,90588.0,90579.0,0.01104008]
[1768070581269,0.02208,90587.0,90580.0,0.01103996]
[1768070581494,0.02208,90587.0,90579.0,0.01104008]
[1768070581858,0.02208,90587.0,90580.0,0.01103996]
[1768070582103,0.00019542,90590.0,90580.0,0.01103996]
[1768070582306,0.02208,90586.0,90579.0,0.01104008]
[1768070583263,0.02208,90586.0,90578.0,0.05944343]
[1768070583509,0.02208,90586.0,90579.0,0.01104008]
[1768070583714,0.02208,90586.0,90580.0,0.01103996]
[1768070583910,0.02208,90586.0,90580.0,0.01099484]
[1768070584229,0.02208,90586.0,90580.0,0.01103996]
[1768070585566,0.02208,90586.0,90579.0,0.01104008]
[1768070585874,0.02208,90586.0,90580.0,0.01103996]
[1768070586696,0.02208,90585.0,90579.0,0.01104008]
[1768070587036,0.02208,90585.0,90580.0,0.01103996]
[1768070587256,0.00019542,90590.0,90580.0,0.01103996]
[1768070587433,0.02208,90584.0,90580.0,0.01103996]
[1768070588511,0.00019542,90590.0,90581.0,0.01103984]
[1768070588655,0.00019542,90590.0,90580.0,0.01103996]
[1768070588656,0.02208,90583.0,90580.0,0.01103996]
[1768070588864,0.02208,90583.0,90579.0,0.01104008]
[1768070589976,0.00019542,90590.0,90579.0,0.01104008]
[1768070590176,0.02208,90589.0,90579.0,0.01104008]
[1768070590722,0.00019542,90590.0,90580.0,0.01103996]
[1768070590859,0.02208,90589.0,90580.0,0.01103996]
[1768070591063,0.02208,90589.0,90579.0,0.01104008]
[1768070591276,0.02208,90589.0,90580.0,0.01103996]
[1768070591540,0.00019542,90590.0,90580.0,0.01103996]
[1768070591748,0.02208,90588.0,90580.0,0.01103996]
[1768070592180,0.02208,90588.0,90579.0,0.01104008]
[1768070592314,0.02208,90588.0,90580.0,0.01103996]
[1768070592519,0.02208,90588.0,90579.0,0.01104008]
[1768070594387,0.02208,90588.0,90580.0,0.01103996]
[1768070594746,0.02208,90588.0,90579.0,0.01104008]
[1768070597462,0.02208,90588.0,90580.0,0.01103996]
[1768070599651,0.02208,90588.0,90579.0,0.01104008]
[1768070599800,0.02208,90588.0,90580.0,0.01103996]
[1768070600028,0.02208,90588.0,90579.0,0.01104008]
[1768070600340,0.02208,90588.0,90580.0,0.01103996]
[1768070600540,0.02208,90588.0,90579.0,0.01104008]
[1768070601560,0.02208,90588.0,90578.0,0.05944343]
[1768070601759,0.02208,90588.0,90579.0,0.01104008]
[1768070601973,0.02208,90588.0,90580.0,0.01103996]
[1768070604313,0.02208,90588.0,90579.0,0.01104008]
[1768070604600,0.02208,90588.0,90580.0,0.01103996]
[1768070605373,0.02208,90588.0,90581.0,0.01103984]
[1768070606732,0.02208,90588.0,90580.0,0.01103996]
[1768070606951,0.02208,90588.0,90581.0,0.01103984]
[1768070609256,0.02208,90588.0,90580.0,0.01103996]
[1768070609957,0.02208,90588.0,90581.0,0.01103984]
[1768070613402,0.02208,90588.0,90579.0,0.02208016]
[1768070613640,0.02208,90588.0,90580.0,0.01103996]
[1768070614900,0.02208,90588.0,90581.0,0.01103984]
[1768070615449,0.02208,90588.0,90580.0,0.01103996]
[1768070616043,0.02208,90588.0,90581.0,0.01103984]
[1768070616245,0.02208,90588.0,90580.0,0.01103996]
[1768070616984,0.02208,90588.0,90581.0,0.01103984]
[1768070617277,0.02208,90588.0,90580.0,0.01103996]
[1768070617690,0.02208,90588.0,90581.0,0.01103984]
[1768070618466,0.02208,90588.0,90580.0,0.01103996]
[1768070619471,0.02208,90588.0,90581.0,0.01103984]
[1768070619692,0.02208,90588.0,90580.0,0.01103996]
[1768070621235,0.00019542,90590.0,90579.0,0.01104008]
[1768070621430,0.02208,90587.0,90579.0,0.01104008]
[1768070621653,0.02208,90587.0,90578.0,0.35223645]
[1768070623647,0.02208,90587.0,90579.0,0.01104008]
[1768070624235,0.02208,90587.0,90578.0,0.35223645]
[1768070624406,0.02208,90587.0,90578.0,0.34119625]
[1768070624831,0.02208,90587.0,90578.0,0.35223645]
[1768070628269,0.02208,90587.0,90579.0,0.01104008]
[1768070629276,0.02208,90587.0,90580.0,0.01103996]
[1768070630785,0.02208,90587.0,90579.0,0.01104008]
[1768070631075,0.02208,90587.0,90580.0,0.01103996]
[1768070632287,0.02208,90587.0,90578.0,0.34119625]